bitfinex-derivatives/quotes_BNBF0:USTF0_20250101
["timestamp","ask_amount","ask_price","bid_price","bid_amount"]
[1735716704215,1.06230199,705.2,704.02,1.06384313]
[1735716704414,0.26127495,705.19,704.02,1.06384313]
[1735716705021,1.06230199,705.2,704.02,1.06384313]
[1735716705817,1.06230199,705.16,704.05,1.06384313]
[1735716706914,1.06230199,705.16,704.07,1.06384313]
[1735716708019,1.06230199,705.15,704.06,1.06384313]
[1735716709318,1.06230199,705.15,704.07,1.06384313]
[1735716709922,0.26128465,705.14,704.07,1.06384313]
[1735716710417,1.32358664,705.14,704.06,1.06384313]
[1735716710616,0.26128465,705.13,704.06,1.06384313]
[1735716710920,1.06230199,705.14,704.06,1.06384313]
[1735716711121,0.26132009,705.13,704.06,1.06384313]
[1735716711716,0.26132009,705.13,703.97,0.28410301]
[1735716711717,1.06230199,705.05,703.97,0.28410301]
[1735716712921,1.48178638,705.21,703.97,0.28410301]
[1735716712922,0.26132387,705.04,703.97,0.28410301]
[1735716713121,0.26132387,705.03,703.97,0.28410301]
[1735716713322,0.26132387,705.02,703.97,0.28410301]
[1735716713517,0.26132387,705.06,703.97,0.28410301]
[1735716713719,0.26132387,705.05,703.97,0.28410301]
[1735716713921,0.26132387,705.04,703.97,0.28410301]
[1735716714223,0.26131954,705.03,703.97,0.28410301]
[1735716714420,0.26131954,705.02,703.97,0.28410301]
[1735716714623,0.26131954,705.01,703.97,0.28410301]
[1735716714924,0.26131954,705.0,703.97,0.28410301]
[1735716715122,0.26131954,704.99,703.97,0.28410301]
[1735716715325,0.26131954,704.98,703.97,0.28410301]
[1735716715521,0.26131954,704.97,703.97,0.28410301]
[1735716715727,1.06152442,705.01,703.97,0.28410301]
[1735716716026,0.26131817,705.0,703.97,0.28410301]
[1735716716528,0.26131902,704.99,703.97,0.28410301]
[1735716716726,0.26131902,704.98,703.97,0.28410301]
[1735716716926,0.26131902,704.97,703.97,0.28410301]
[1735716717223,1.48178638,705.21,703.97,0.28410301]
[1735716717224,1.06152442,705.06,703.97,0.28410301]
[1735716717528,1.4821177,705.04,703.97,0.28410301]
[1735716717727,0.26132081,705.03,703.97,0.28410301]
[1735716719027,0.26132414,705.02,703.97,0.28410301]
[1735716719227,0.26132414,705.01,703.97,0.28410301]
[1735716719422,0.26132414,705.0,703.97,0.28410301]
[1735716719627,0.26132414,704.99,703.97,0.28410301]
[1735716719829,0.26132414,704.98,703.97,0.28410301]
[1735716720029,0.26132414,704.97,703.97,0.28410301]
[1735716720229,0.26132414,704.96,703.97,0.28410301]
[1735716720426,0.26132414,704.95,703.97,0.28410301]
[1735716720631,0.26132414,704.94,703.97,0.28410301]
[1735716720826,0.26132414,704.93,703.97,0.28410301]
[1735716721028,0.26132414,704.92,703.97,0.28410301]
[1735716721231,0.26132414,704.91,703.97,0.28410301]
[1735716721432,0.26132414,704.9,703.97,0.28410301]
[1735716721631,0.26132414,704.89,703.97,0.28410301]
[1735716721832,0.26131586,704.88,703.97,0.28410301]
[1735716722033,0.26131586,704.87,704.0,1.06475246]
[1735716722231,1.06152442,705.01,704.0,1.06475246]
[1735716722432,0.26131586,705.0,704.0,1.06475246]
[1735716723032,0.26131586,705.0,703.99,1.06475246]
[1735716723535,1.06152442,705.01,703.99,1.06475246]
[1735716723536,0.26131616,704.99,703.99,1.06475246]
[1735716723734,0.26131616,704.98,703.99,1.06475246]
[1735716723934,0.26131616,704.97,703.99,1.06475246]
[1735716724137,0.26131616,704.96,703.98,1.06475246]
[1735716724331,0.26131616,704.95,703.98,1.06475246]
[1735716724636,0.26131616,704.94,703.98,1.06475246]
[1735716724835,0.26131616,704.93,703.98,1.06475246]
[1735716725033,0.26131616,704.92,703.98,1.06475246]
[1735716725234,1.06152442,705.0,703.98,1.06475246]
[1735716725534,0.26130499,704.99,703.98,1.06475246]
[1735716725735,0.26130499,704.99,704.01,1.06475246]
[1735716725935,0.26130499,704.98,704.01,1.06475246]
[1735716726234,0.26130499,704.97,704.01,1.06475246]
[1735716726434,0.26130499,704.96,704.01,1.06475246]
[1735716726629,0.26130499,704.95,704.01,1.06475246]
[1735716726830,0.26130499,704.94,703.98,1.06475246]
[1735716727034,0.26130499,704.93,703.98,1.06475246]
[1735716727230,1.4821177,705.04,703.98,1.06475246]
[1735716727433,0.26130737,705.03,703.98,1.06475246]
[1735716728841,0.26131684,705.02,703.98,1.06475246]
[1735716729139,0.26131684,705.01,703.97,0.28410301]
[1735716729337,0.26131684,705.0,703.97,0.28410301]
[1735716729539,0.26131684,704.99,703.97,0.28410301]
[1735716729736,0.26131684,704.98,703.97,0.28410301]
[1735716729938,0.26131684,704.97,703.97,0.28410301]
[1735716730134,0.26131684,704.96,703.97,0.28410301]
[1735716730335,0.26131684,704.95,703.97,0.28410301]
[1735716730536,0.26131684,704.94,703.97,0.28410301]
[1735716730739,0.26131684,704.93,703.97,0.28410301]
[1735716730941,0.26131684,704.92,703.97,0.28410301]
[1735716731139,0.26131684,704.91,703.97,0.28410301]
[1735716731340,0.26131684,704.9,703.97,0.28410301]
[1735716731535,2.54364212,705.04,703.97,0.28410301]
[1735716731536,0.26132107,704.89,703.97,0.28410301]
[1735716731734,1.06152442,705.02,703.97,0.28410301]
[1735716731940,0.26132015,705.01,703.97,0.28410301]
[1735716734045,1.06152442,705.02,703.97,0.28410301]
[1735716734246,0.26130807,705.01,703.97,0.28410301]
[1735716734747,0.26130807,705.01,704.0,1.06475246]
[1735716735046,0.26130807,705.0,704.0,1.06475246]
[1735716735241,0.2613115,704.99,704.0,1.06475246]
[1735716735448,0.2613115,704.98,704.0,1.06475246]
[1735716735646,0.2613115,704.97,704.0,1.06475246]
[1735716735841,0.2613115,704.96,704.0,1.06475246]
[1735716736148,0.2613115,704.95,704.0,1.06475246]
[1735716736447,0.2613115,704.95,703.97,0.28410301]
[1735716736448,0.2613115,704.94,704.02,1.06475246]
[1735716736748,0.261312,704.93,704.02,1.06475246]
[1735716736948,0.261312,704.92,704.02,1.06475246]
[1735716737145,0.261312,704.91,704.02,1.06475246]
[1735716737446,0.26131441,704.9,704.02,1.06475246]
[1735716737648,0.26131441,704.89,704.02,1.06475246]
[1735716737848,0.26131441,704.88,704.02,1.06475246]
[1735716738050,1.06152442,704.97,704.02,1.06475246]
[1735716739548,1.06152442,705.28,703.97,0.28410301]
[1735716739850,1.4820388,705.09,703.97,0.28410301]
[1735716740051,1.06152442,705.28,703.97,0.28410301]
[1735716740250,1.74330321,705.27,703.97,0.28410301]
[1735716740452,1.48199672,705.27,703.97,0.28410301]
[1735716740651,1.06152442,705.26,703.97,0.28410301]
[1735716741950,1.06152442,705.24,703.97,0.28410301]
[1735716743053,1.06152442,705.23,703.97,0.28410301]
[1735716744150,1.06152442,705.21,703.97,0.28410301]
[1735716745054,1.48199672,705.27,703.97,0.28410301]
[1735716745055,1.06152442,705.19,703.97,0.28410301]
[1735716747951,1.32283326,705.18,703.97,0.28410301]
[1735716748151,0.26130884,705.17,703.97,0.28410301]
[1735716748961,1.06152442,705.02,704.03,1.06475246]
[1735716750561,1.06152442,705.01,704.01,1.06475246]
[1735716751660,1.48207036,705.03,703.97,0.28410301]
[1735716752158,0.26135406,705.02,703.97,0.28410301]
[1735716752960,1.06152442,704.96,703.97,0.28410301]
[1735716754462,1.06152442,704.99,703.97,0.28410301]
[1735716755360,0.26136525,704.98,703.97,0.28410301]
[1735716755856,0.26136525,704.97,703.97,0.28410301]
[1735716756060,0.26136525,704.96,703.97,0.28410301]
[1735716756257,1.06152442,705.0,703.97,0.28410301]
[1735716756561,0.26137664,704.99,703.97,0.28410301]
[1735716757063,1.32290106,704.99,703.97,0.28410301]
[1735716757259,0.26137664,704.98,703.97,0.28410301]
[1735716757859,0.2613774,704.97,703.97,0.28410301]
[1735716758064,1.06152442,704.93,703.97,0.28410301]
[1735716758264,0.2613774,704.92,703.97,0.28410301]
[1735716759356,0.2613774,704.91,703.97,0.28410301]
[1735716759557,0.2613774,704.9,703.97,0.28410301]
[1735716759759,0.2613774,704.89,703.97,0.28410301]
[1735716759965,0.2613774,704.88,703.97,0.28410301]
[1735716760159,0.2613774,704.87,703.97,0.28410301]
[1735716760361,0.2613774,704.86,703.97,0.28410301]
[1735716760565,0.26137783,704.85,703.97,0.28410301]
[1735716760761,0.26137783,704.84,703.97,0.28410301]
[1735716760966,0.26137783,704.83,703.97,0.28410301]
[1735716761166,0.26137896,704.82,703.97,0.28410301]
[1735716761365,0.26137896,704.81,703.97,0.28410301]
[1735716761566,1.48239128,704.92,703.97,0.28410301]
[1735716761766,0.2613756,704.91,703.97,0.28410301]
[1735716763267,0.26137594,704.9,703.97,0.28410301]
[1735716763465,0.26137594,704.89,703.97,0.28410301]
[1735716763667,0.26137594,704.88,703.97,0.28410301]
[1735716763865,0.26137594,704.87,703.97,0.28410301]
[1735716764066,0.26137594,704.86,703.97,0.28410301]
[1735716764367,0.26137594,704.85,703.97,0.28410301]
[1735716764565,0.26137594,704.84,703.97,0.28410301]
[1735716764765,1.48239128,704.92,703.97,0.28410301]
[1735716764766,0.26137594,704.83,703.97,0.28410301]
[1735716764972,0.26137594,704.82,703.97,0.28410301]
[1735716765168,0.26137594,704.81,703.97,0.28410301]
[1735716765369,0.26137594,704.8,703.97,0.28410301]
[1735716765669,0.26137594,704.79,703.97,0.28410301]
[1735716765864,0.26137813,704.78,703.97,0.28410301]
[1735716766069,0.26137813,704.77,703.97,0.28410301]
[1735716766272,1.48239128,704.92,703.97,0.28410301]
[1735716766569,0.26137554,704.91,703.97,0.28410301]
[1735716768464,0.26137744,704.9,703.97,0.28410301]
[1735716768667,1.48239128,704.92,703.97,0.28410301]
[1735716768668,0.26137744,704.89,703.97,0.28410301]
[1735716768869,0.26137744,704.88,703.97,0.28410301]
[1735716769168,0.26137744,704.87,703.97,0.28410301]
[1735716769369,0.26137744,704.86,703.97,0.28410301]
[1735716769568,0.26137744,704.85,703.97,0.28410301]
[1735716769873,1.48239128,704.92,703.97,0.28410301]
[1735716769874,0.26137744,704.84,703.97,0.28410301]
[1735716770067,1.48239128,704.92,703.97,0.28410301]
[1735716770871,0.26139658,704.91,703.97,0.28410301]
[1735716771271,1.48239128,704.92,703.97,0.28410301]
[1735716771771,0.26139725,704.91,703.97,0.28410301]
[1735716772571,1.48239128,704.92,703.97,0.28410301]
[1735716772770,0.26139642,704.91,703.97,0.28410301]
[1735716773673,1.48239128,704.92,703.97,0.28410301]
[1735716773874,0.26139931,704.91,703.97,0.28410301]
[1735716774976,0.26139931,704.91,703.5,1.06475246]
[1735716775270,0.26139931,704.91,703.51,0.28428878]
[1735716776466,0.26140164,704.9,703.51,0.28428878]
[1735716776671,0.26140164,704.89,703.51,0.28428878]
[1735716776869,0.26140164,704.88,703.51,0.28428878]
[1735716777072,0.26140164,704.87,703.51,0.28428878]
[1735716777272,0.26140164,704.86,703.53,1.06475246]
[1735716777468,1.48239128,704.92,703.53,1.06475246]
[1735716777469,0.26140164,704.85,703.54,0.28427665]
[1735716777672,0.26140164,704.84,703.54,0.28427665]
[1735716777875,0.26140164,704.83,703.54,0.28427665]
[1735716778175,1.48239128,704.92,703.54,0.28427665]
[1735716778376,0.26141103,704.91,703.54,0.28427665]
[1735716779773,1.48239128,704.92,703.54,0.28427665]
[1735716780183,0.26142762,704.91,703.54,0.28427665]
[1735716780479,1.48239128,704.92,703.54,0.28427665]
[1735716781384,0.26142931,704.91,703.54,0.28427665]
[1735716782383,1.48239128,704.92,703.54,0.28427665]
[1735716790487,1.46885633,704.92,703.54,0.28427665]
[1735716795489,0.26140876,704.91,703.54,0.28427665]
[1735716796592,1.06152442,704.88,703.61,1.06475246]
[1735716796792,0.26140991,704.87,703.61,1.06475246]
[1735716796995,0.26140991,704.86,703.61,1.06475246]
[1735716797195,0.26140991,704.85,703.61,1.06475246]
[1735716797394,1.06152442,704.88,703.61,1.06475246]
[1735716797594,0.26140991,704.87,703.61,1.06475246]
[1735716798898,1.06152442,704.85,703.62,1.06475246]
[1735716799094,0.26140991,704.84,703.62,1.06475246]
[1735716799398,0.26141508,704.83,703.62,1.06475246]
[1735716799602,0.26141508,704.82,703.62,1.06475246]
[1735716799798,0.26141508,704.81,703.62,1.06475246]
[1735716799998,1.06152442,704.73,703.74,1.06475246]
[1735716800199,0.26141508,704.72,703.74,1.06475246]
[1735716801301,1.3229395,704.72,703.75,1.06475246]
[1735716801499,0.26141508,704.71,703.75,1.06475246]
[1735716802099,0.26141688,704.7,703.75,1.06475246]
[1735716802401,0.26141688,704.69,703.74,1.06475246]
[1735716802700,0.26141688,704.68,703.74,1.06475246]
[1735716802894,0.26141688,704.67,703.74,1.06475246]
[1735716803098,0.26142,704.66,703.74,1.06475246]
[1735716803295,1.06152442,704.71,703.74,1.06475246]
[1735716803498,0.26141266,704.7,703.74,1.06475246]
[1735716803899,0.26141266,704.7,703.75,1.06475246]
[1735716803900,1.32293708,704.7,703.75,1.06475246]
[1735716804100,0.26141266,704.69,703.75,1.06475246]
[1735716804697,1.06152442,704.7,703.75,1.06475246]
[1735716804899,0.2614128,704.69,703.75,1.06475246]
[1735716805402,0.2614128,704.69,703.77,1.06475246]
[1735716806606,1.06152442,704.67,703.78,1.06475246]
[1735716807503,1.06152442,704.7,703.76,1.06475246]
[1735716808704,1.06152442,704.83,703.63,1.06475246]
[1735716809899,1.06152442,704.83,703.61,1.06475246]
[1735716810603,1.06152442,704.84,703.61,1.06475246]
[1735716811903,1.48261759,704.83,703.61,1.06475246]
[1735716812898,1.48261759,704.83,703.54,0.28427665]
[1735716812899,1.06152442,704.79,703.6,1.06475246]
[1735716814105,1.48261759,704.83,703.6,1.06475246]
[1735716814106,1.06152442,704.78,703.6,1.06475246]
[1735716815106,1.06152442,704.78,703.54,0.28427665]
[1735716816511,1.32297802,704.77,703.54,0.28427665]
[1735716816705,0.2614536,704.76,703.54,0.28427665]
[1735716817512,1.06152442,704.71,703.54,0.28427665]
[1735716818413,0.26145709,704.7,703.54,0.28427665]
[1735716818608,0.26145709,704.69,703.54,0.28427665]
[1735716818808,0.26145709,704.68,703.54,0.28427665]
[1735716819011,1.06152442,704.72,703.54,0.28427665]
[1735716819211,0.26145864,704.71,703.54,0.28427665]
[1735716819412,1.06152442,704.7,703.54,0.28427665]
[1735716819613,0.26145864,704.69,703.54,0.28427665]
[1735716820714,0.26145888,704.68,703.54,0.28427665]
[1735716820913,0.26145888,704.67,703.54,0.28427665]
[1735716821212,0.26145888,704.66,703.54,0.28427665]
[1735716821413,0.26145888,704.65,703.54,0.28427665]
[1735716821612,0.26145888,704.64,703.54,0.28427665]
[1735716821813,0.26145888,704.63,703.54,0.28427665]
[1735716822016,0.26145888,704.62,703.57,1.06475246]
[1735716822208,1.06152442,704.64,703.57,1.06475246]
[1735716822209,0.26145888,704.61,703.57,1.06475246]
[1735716822407,0.26145888,704.6,703.57,1.06475246]
[1735716822610,0.26145888,704.59,703.57,1.06475246]
[1735716822810,0.26145888,704.58,703.57,1.06475246]
[1735716823008,1.06152442,704.64,703.57,1.06475246]
[1735716823211,0.26146197,704.63,703.56,1.06475246]
[1735716823411,0.26146197,704.62,703.56,1.06475246]
[1735716823612,0.26146197,704.61,703.56,1.06475246]
[1735716823813,0.26146197,704.6,703.56,1.06475246]
[1735716824012,0.26146197,704.59,703.56,1.06475246]
[1735716824211,1.06152442,704.65,703.56,1.06475246]
[1735716824411,1.48283343,704.72,703.54,0.28427665]
[1735716824412,0.26145831,704.64,703.57,1.06475246]
[1735716824617,0.26145831,704.63,703.57,1.06475246]
[1735716824816,0.26145831,704.62,703.57,1.06475246]
[1735716825010,0.26145831,704.61,703.57,1.06475246]
[1735716825213,0.26145831,704.6,703.56,1.06475246]
[1735716825409,0.26145831,704.59,703.56,1.06475246]
[1735716825613,0.26145831,704.58,703.56,1.06475246]
[1735716825815,1.06152442,704.66,703.56,1.06475246]
[1735716826116,1.3229806,704.65,703.59,1.06475246]
[1735716826316,0.26145618,704.64,703.59,1.06475246]
[1735716827318,1.3229806,704.64,703.57,1.06475246]
[1735716827521,0.26145618,704.63,703.57,1.06475246]
[1735716828520,0.26145618,704.62,703.57,1.06475246]
[1735716828723,0.26145618,704.61,703.57,1.06475246]
[1735716828920,0.26145618,704.6,703.57,1.06475246]
[1735716829221,0.26145618,704.59,703.57,1.06475246]
[1735716829419,0.26145618,704.58,703.57,1.06475246]
[1735716829620,0.26145618,704.57,703.57,1.06475246]
[1735716829915,0.26145618,704.56,703.57,1.06475246]
[1735716830120,0.26145618,704.55,703.57,1.06475246]
[1735716830320,0.26145618,704.54,703.57,1.06475246]
[1735716830520,0.26145618,704.53,703.57,1.06475246]
[1735716830820,0.26145618,704.52,703.57,1.06475246]
[1735716831020,0.26145618,704.51,703.57,1.06475246]
[1735716831315,0.26147281,704.5,703.57,1.06475246]
[1735716831520,0.26147281,704.49,703.57,1.06475246]
[1735716831721,0.26147281,704.48,703.57,1.06475246]
[1735716831920,1.06152442,704.61,703.57,1.06475246]
[1735716832120,0.26147629,704.6,703.57,1.06475246]
[1735716832419,0.26147629,704.6,703.55,1.06475246]
[1735716832420,1.06152442,704.59,703.55,1.06475246]
[1735716832620,0.26147629,704.58,703.55,1.06475246]
[1735716833319,0.26147629,704.58,703.54,0.28427665]
[1735716833320,1.06152442,704.58,703.54,0.28427665]
[1735716833715,0.26149895,704.57,703.54,0.28427665]
[1735716833914,1.06152442,704.58,703.54,0.28427665]
[1735716834219,0.26149922,704.57,703.54,0.28427665]
[1735716834617,1.48299141,704.6,703.54,0.28427665]
[1735716834817,0.26150344,704.59,703.54,0.28427665]
[1735716836518,0.26150122,704.58,703.54,0.28427665]
[1735716836722,0.26150122,704.57,703.54,0.28427665]
[1735716837023,0.26150122,704.56,703.54,0.28427665]
[1735716837217,1.48299141,704.6,703.54,0.28427665]
[1735716837421,0.26150241,704.59,703.54,0.28427665]
[1735716839222,0.26150997,704.58,703.54,0.28427665]
[1735716839424,0.26150997,704.57,703.54,0.28427665]
[1735716839723,0.26150997,704.56,703.54,0.28427665]
[1735716839925,0.26151031,704.55,703.54,0.28427665]
[1735716840223,0.26151031,704.54,703.54,0.28427665]
[1735716840422,0.26151031,704.53,703.54,0.28427665]
[1735716840619,1.48299141,704.6,703.54,0.28427665]
[1735716840620,0.26151031,704.52,703.54,0.28427665]
[1735716840826,0.26151031,704.51,703.54,0.28427665]
[1735716841025,1.48299141,704.6,703.54,0.28427665]
[1735716841325,0.26151657,704.59,703.54,0.28427665]
[1735716843621,0.26149256,704.58,703.54,0.28427665]
[1735716843827,0.26149256,704.57,703.54,0.28427665]
[1735716844126,0.26149256,704.56,703.54,0.28427665]
[1735716844325,0.26149256,704.55,703.54,0.28427665]
[1735716844521,0.26149256,704.54,703.54,0.28427665]
[1735716844723,0.26149256,704.53,703.54,0.28427665]
[1735716844918,1.48299141,704.6,703.54,0.28427665]
[1735716845120,0.26149164,704.59,703.54,0.28427665]
[1735716847028,0.26148801,704.58,703.54,0.28427665]
[1735716847228,0.26148801,704.57,703.54,0.28427665]
[1735716847427,0.26148801,704.56,703.54,0.28427665]
[1735716847628,0.26148801,704.55,703.54,0.28427665]
[1735716847828,0.26148801,704.54,703.54,0.28427665]
[1735716848029,0.26149436,704.53,703.54,0.28427665]
[1735716848222,0.26149436,704.52,703.54,0.28427665]
[1735716848426,1.48299141,704.6,703.54,0.28427665]
[1735716848627,0.26149581,704.59,703.54,0.28427665]
[1735716849930,1.06152442,704.52,703.54,0.28427665]
[1735716850122,0.26149581,704.51,703.54,0.28427665]
[1735716850929,0.26149581,704.51,703.56,1.06475246]
[1735716851129,0.26149581,704.5,703.56,1.06475246]
[1735716851324,0.26149581,704.49,703.56,1.06475246]
[1735716851631,0.26149581,704.48,703.56,1.06475246]
[1735716851926,0.26149581,704.47,703.56,1.06475246]
[1735716852123,0.26149581,704.46,703.56,1.06475246]
[1735716852326,0.26149581,704.45,703.56,1.06475246]
[1735716852630,0.26149581,704.44,703.56,1.06475246]
[1735716852829,1.06152442,704.5,703.56,1.06475246]
[1735716852830,0.26149581,704.43,703.56,1.06475246]
[1735716853031,0.26149581,704.42,703.56,1.06475246]
[1735716853226,0.26149581,704.41,703.56,1.06475246]
[1735716853424,1.06152442,704.5,703.56,1.06475246]
[1735716853625,0.26149047,704.49,703.56,1.06475246]
[1735716853928,0.26149047,704.49,703.54,0.28427665]
[1735716853929,0.26149047,704.49,703.57,1.06475246]
[1735716854142,1.06152442,704.5,703.57,1.06475246]
[1735716854328,0.26149049,704.49,703.57,1.06475246]
[1735716854829,1.06152442,704.5,703.57,1.06475246]
[1735716855128,0.26149164,704.49,703.57,1.06475246]
[1735716855327,1.06152442,704.5,703.57,1.06475246]
[1735716856032,0.26150139,704.49,703.57,1.06475246]
[1735716856937,1.06152442,704.5,703.57,1.06475246]
[1735716857130,1.06152442,704.53,703.54,0.28427665]
[1735716857329,0.26150975,704.52,703.54,0.28427665]
[1735716858239,1.06152442,704.55,703.54,0.28427665]
[1735716858436,0.26150313,704.54,703.54,0.28427665]
[1735716859433,0.26150313,704.56,703.54,0.28427665]
[1735716859638,0.26150313,704.55,703.54,0.28427665]
[1735716859938,0.26150313,704.54,703.54,0.28427665]
[1735716860144,0.26150313,704.53,703.54,0.28427665]
[1735716860441,1.06152442,704.56,703.54,0.28427665]
[1735716860642,0.26150371,704.55,703.54,0.28427665]
[1735716860943,1.32302813,704.55,703.54,0.28427665]
[1735716861142,0.26150371,704.54,703.54,0.28427665]
[1735716862038,1.06152442,704.55,703.54,0.28427665]
[1735716862242,0.2615095,704.54,703.54,0.28427665]
[1735716862742,1.06152442,704.54,703.54,0.28427665]
[1735716862943,0.26151067,704.53,703.54,0.28427665]
[1735716863638,1.06152442,704.54,703.54,0.28427665]
[1735716864142,1.06152442,704.53,703.54,0.28427665]
[1735716864843,1.06152442,704.53,703.42,1.06475246]
[1735716865045,0.26150582,704.52,703.42,1.06475246]
[1735716865242,0.26150582,704.52,703.45,1.06475246]
[1735716866140,1.06152442,704.5,703.49,1.06475246]
[1735716866946,0.26150048,704.49,703.49,1.06475246]
[1735716867344,0.26150048,704.49,703.5,1.06475246]
[1735716868546,0.26150048,704.49,703.53,1.06475246]
[1735716868547,1.06152442,704.46,703.53,1.06475246]
[1735716869747,1.32303648,704.45,703.53,1.06475246]
[1735716869946,1.06152442,704.45,703.53,1.06475246]
[1735716870647,1.06152442,704.45,703.51,1.06475246]
[1735716871545,1.06152442,704.47,703.53,1.06475246]
[1735716872548,1.48314942,704.53,703.32,1.06475246]
[1735716874546,1.48314942,704.53,702.42,2.1738696]
[1735716874547,1.48314942,704.53,703.29,1.06475246]
[1735716875649,1.48314942,704.53,703.26,1.06475246]
[1735716878149,1.48314942,704.53,703.1,1.06475246]
[1735716879144,1.48314942,704.53,703.05,1.06475246]
[1735716880448,1.48314942,704.53,703.02,1.06475246]
[1735716881347,1.48314942,704.53,703.04,1.06475246]
[1735716883450,1.48314942,704.53,703.06,1.06475246]
[1735716884346,0.2615342,704.52,703.07,1.06475246]
[1735716885449,0.2615342,704.52,702.52,5.09141239]
[1735716885450,0.2615342,704.52,703.31,1.06475246]
[1735716886052,0.26153435,704.51,703.31,1.06475246]
[1735716886350,0.26153435,704.5,703.31,1.06475246]
[1735716886552,0.26153435,704.49,703.31,1.06475246]
[1735716886752,0.26153509,704.48,703.31,1.06475246]
[1735716886953,0.26153509,704.47,703.31,1.06475246]
[1735716887153,1.06152442,704.52,703.31,1.06475246]
[1735716887347,0.26153689,704.51,703.31,1.06475246]
[1735716887851,1.32306131,704.51,703.31,1.06475246]
[1735716888052,0.26153689,704.5,703.31,1.06475246]
[1735716889255,0.26153689,704.5,703.4,1.06475246]
[1735716889256,1.06152442,704.41,703.4,1.06475246]
[1735716890149,1.48333381,704.45,703.33,1.06475246]
[1735716890353,0.26153693,704.44,703.33,1.06475246]
[1735716891253,0.26153693,704.44,703.34,1.06475246]
[1735716891454,1.48333381,704.45,703.34,1.06475246]
[1735716891455,0.26153891,704.43,703.34,1.06475246]
[1735716891651,1.48333381,704.45,703.34,1.06475246]
[1735716892156,0.26154868,704.44,703.34,1.06475246]
[1735716892457,0.26154868,704.44,703.32,1.06475246]
[1735716893653,0.26154868,704.44,702.58,2.1738696]
[1735716893654,0.26154868,704.44,703.29,1.06475246]
[1735716894157,0.26155279,704.43,703.29,1.06475246]
[1735716894351,0.26155279,704.42,703.29,1.06475246]
[1735716894551,0.26155279,704.41,703.29,1.06475246]
[1735716894750,1.48333381,704.45,703.29,1.06475246]
[1735716894953,0.26155365,704.44,703.28,1.06475246]
[1735716896451,1.32307807,704.44,703.31,1.06475246]
[1735716896753,0.26155365,704.43,703.31,1.06475246]
[1735716897650,0.26155365,704.43,703.06,1.06475246]
[1735716897651,0.26155365,704.43,703.3,1.06475246]
[1735716898958,0.26155365,704.43,702.61,2.1738696]
[1735716898959,0.26155365,704.43,703.29,1.06475246]
[1735716899255,0.26155365,704.42,703.29,1.06475246]
[1735716899456,0.26155365,704.41,703.29,1.06475246]
[1735716899651,0.26155365,704.4,703.29,1.06475246]
[1735716899957,0.26155365,704.39,703.32,1.06475246]
[1735716900150,1.06152442,704.42,703.32,1.06475246]
[1735716900151,0.26155365,704.38,703.32,1.06475246]
[1735716900357,1.06152442,704.42,703.32,1.06475246]
[1735716900552,0.26154155,704.41,703.32,1.06475246]
[1735716901357,0.26154155,704.41,702.66,2.1738696]
[1735716901358,0.26154155,704.41,703.34,1.06475246]
[1735716901558,0.26154155,704.4,703.34,1.06475246]
[1735716901759,0.26154155,704.39,703.34,1.06475246]
[1735716901958,0.26154155,704.38,703.34,1.06475246]
[1735716902152,0.26154155,704.37,703.34,1.06475246]
[1735716902355,0.26154155,704.36,703.37,1.06475246]
[1735716902558,0.26154155,704.35,703.37,1.06475246]
[1735716902759,1.06152442,704.38,703.37,1.06475246]
[1735716902760,0.26154155,704.34,703.37,1.06475246]
[1735716902963,0.26154155,704.33,703.37,1.06475246]
[1735716903261,1.06152442,704.38,703.38,1.06475246]
[1735716903560,0.26154808,704.37,703.38,1.06475246]
[1735716903858,0.26154135,704.36,703.38,1.06475246]
[1735716904061,0.26154135,704.35,703.38,1.06475246]
[1735716904262,0.26154135,704.34,703.38,1.06475246]
[1735716904566,0.26154135,704.33,703.4,1.06475246]
[1735716904863,1.06152442,704.39,703.4,1.06475246]
[1735716905062,0.26153783,704.38,703.4,1.06475246]
[1735716905661,1.06152442,704.37,703.39,1.06475246]
[1735716905862,0.26153783,704.36,703.39,1.06475246]
[1735716906557,0.26154551,704.35,703.39,1.06475246]
[1735716906861,0.26154551,704.34,703.4,1.06475246]
[1735716907058,1.06152442,704.37,703.4,1.06475246]
[1735716907258,0.26154651,704.36,703.4,1.06475246]
[1735716908155,0.26154679,704.35,703.4,1.06475246]
[1735716909164,1.06152442,704.3,703.45,1.06475246]
[1735716909365,0.26154679,704.29,703.45,1.06475246]
[1735716910067,0.26154679,704.29,703.46,1.06475246]
[1735716910563,1.06152442,704.3,703.46,1.06475246]
[1735716910865,1.06152442,704.31,703.48,1.06475246]
[1735716911067,0.26153619,704.3,703.48,1.06475246]
[1735716911363,1.06152442,704.31,703.48,1.06475246]
[1735716911560,0.26153315,704.3,703.48,1.06475246]
[1735716911763,1.06152442,704.32,703.5,1.06475246]
[1735716911964,0.26153315,704.31,703.5,1.06475246]
[1735716912767,1.06152442,704.29,703.51,1.06475246]
[1735716912963,0.26153315,704.28,703.51,1.06475246]
[1735716913762,1.06152442,704.29,703.52,1.06475246]
[1735716914066,1.06152442,704.28,703.52,1.06475246]
[1735716915068,1.06152442,704.29,703.52,1.06475246]
[1735716915863,0.26153524,704.28,703.52,1.06475246]
[1735716916369,1.06152442,704.3,703.53,1.06475246]
[1735716917765,1.06152442,704.41,703.37,1.06475246]
[1735716918669,1.06152442,704.4,703.37,1.06475246]